fUST/lending_fUST_20240522
["ID","MTS","AMOUNT","RATE_DAILY","PERIOD"]
[327678692,1716309372242,3631.65802566,0.0001,2]
[327678693,1716309386914,299.53606579,0.0001,2]
[327678694,1716309392258,3631.65802566,0.0001,2]
[327678695,1716309408257,3631.65802566,0.0001,2]
[327678696,1716309408861,299.53606579,0.0001,2]
[327678697,1716309426264,3631.65802566,0.0001,2]
[327678698,1716309428865,299.53606579,0.0001,2]
[327678700,1716309446894,406.81293551,0.0001,2]
[327678701,1716309448260,3631.65802566,0.0001,2]
[327678702,1716309466286,3631.65802566,0.0001,2]
[327678703,1716309488290,2950.52816723,0.0001,2]
[327678870,1716310238411,-666.46326855,0.00016771,2]
[327678874,1716310238423,-428.86560149,0.00016771,2]
[327678877,1716310238432,-528.62113532,0.00016772,2]
[327678879,1716310238441,-128.74271358,0.00016772,2]
[327679111,1716310240745,-702.80759732,0.0001677,2]
[327679113,1716310240755,-26.29294462,0.00016772,2]
[327679115,1716310240764,-155.0341075,0.00016773,2]
[327679117,1716310240778,-189.96457126,0.00016774,2]
[327679119,1716310240787,-2108.354901,0.00016774,2]
[327679121,1716310240797,-167.767292,0.00016895,2]
[327679123,1716310240806,-605.38615462,0.00017798,2]
[327679125,1716310240815,-1525.9728167,0.00017897,2]
[327679127,1716310240824,-7261.49734122,0.00017897,2]
[327679135,1716310240894,-47175.04129619,0.00017897,2]
[327679438,1716310243624,-13651.50628032,0.00017897,2]
[327679441,1716310243636,-285.83068385,0.00017898,2]
[327679443,1716310243652,-10454.14770375,0.00017898,2]
[327679446,1716310243668,-314.685818,0.00019178,2]
[327679448,1716310243682,-162.737522,0.00019178,2]
[327679451,1716310243696,-455.0,0.00020548,10]
[327679454,1716310243711,-425.45752988,0.00020913,2]
[327679456,1716310243726,-312.95714125,0.00020913,2]
[327679459,1716310243740,-644.98977627,0.00020913,2]
[327679464,1716310243778,-4693.15522604,0.00021,2]
[327679467,1716310243807,-605.38615458,0.00021474,2]
[327679471,1716310243829,-166.666666,0.00021918,2]
[327679474,1716310243848,-159.73051569,0.0002243,2]
[327679476,1716310243866,-166.666666,0.00022431,2]
[327679479,1716310243883,-166.666666,0.00022944,2]
[327679482,1716310243899,-166.666666,0.00023456,2]
[327679485,1716310243913,-166.666666,0.00023969,2]
[327679487,1716310243929,-187.1961905,0.00024382,2]
[327679490,1716310243944,-738.499926,0.00024384,2]
[327679492,1716310243960,-166.666666,0.00024482,2]
[327679495,1716310243974,-400.79054117,0.00025148,2]
[327679497,1716310243989,-167.45627556,0.00025149,2]
[327679500,1716310244004,-605.38615458,0.0002515,2]
[327679502,1716310244018,-1410.9941549,0.000265,2]
[327679505,1716310244033,-221.60537528,0.00028,2]
[327679507,1716310244048,-605.38615458,0.00028825,2]
[327679510,1716310244063,-986.56,0.00029214,3]
[327679512,1716310244078,-1183.87,0.00029224,3]
[327679515,1716310244093,-496.0,0.00029234,2]
[327679517,1716310244108,-211.044,0.00029234,2]
[327679520,1716310244123,-196.13990837,0.00030164,2]
[327679525,1716310244168,-8.35198183,0.00030164,2]
[327679528,1716310244183,-204.4918902,0.00030164,2]
[327679531,1716310244197,-204.4918902,0.00030164,2]
[327679533,1716310244211,-204.4918902,0.00030164,2]
[327679536,1716310244226,-204.4918902,0.00030164,2]
[327679538,1716310244240,-738.499926,0.0003031,2]
[327679540,1716310244255,-322.5083448,0.00030986,2]
[327679543,1716310244269,-1880.47,0.0003099,3]
[327679546,1716310244284,-3557.20218657,0.00030999,5]
[327679769,1716310246445,-155.0356582,0.00023455,2]
[327679771,1716310246455,-5898.4997234,0.00030999,5]
[327679774,1716310246464,-47785.75008663,0.00031,2]
[327679786,1716310246940,-8398.16947706,0.00031,2]
[327679788,1716310246950,-370.30901165,0.000315,4]
[327679789,1716310246959,-256.79311419,0.00031751,4]
[327679790,1716310246968,-269.52963995,0.00032,2]
[327679791,1716310246978,-639.34348271,0.00032275,3]
[327679792,1716310246987,-34590.59843749,0.00032328,7]
[327679793,1716310246997,-605.38615458,0.00032501,2]
[327679794,1716310247006,-577.82429758,0.00032501,2]
[327679795,1716310247015,-17149.81,0.00032573,6]
[327679796,1716310247025,-17149.81,0.00032573,6]
[327679797,1716310247035,-17149.81,0.00032573,6]
[327679798,1716310247045,-203.55922642,0.000326,10]
[327679799,1716310247054,-281.0,0.000326,5]
[327679800,1716310247063,-17149.81,0.000326,6]
[327679801,1716310247072,-707.40191249,0.00032601,12]
[327679802,1716310247082,-223.89910826,0.00032602,4]
[327679803,1716310247091,-17149.81,0.00032671,6]
[327679804,1716310247100,-7366.79617595,0.00032671,6]
[327680400,1716311438953,-155.0418613,0.00017897,2]
[327680402,1716311438963,-155.0418613,0.00017898,2]
[327680403,1716311438972,-59.9162774,0.00017899,2]
[327680454,1716311443681,-130.04829386,0.00017899,2]
[327680456,1716311443691,-151.94732518,0.000179,2]
[327680458,1716311443700,-151.94732517,0.000179,2]
[327680460,1716311443709,-151.94732517,0.000179,2]
[327680461,1716311443718,-10454.14770375,0.00017994,2]
[327680462,1716311443728,-9286.99946825,0.00017995,2]
[327680463,1716311443738,-176.82850926,0.00018,2]
[327680465,1716311443747,-3525.86971837,0.00018,2]
[327680467,1716311443756,-1032.95420844,0.00020903,2]
[327680468,1716311443766,-203.46263476,0.00020903,2]
[327680470,1716311443775,-16491.37118617,0.00020913,2]
[327680477,1716311444289,-3595.84595435,0.00020913,2]
[327680478,1716311444299,-2337.66633687,0.00021,2]
[327680479,1716311444357,-2355.48888917,0.00021,2]
[327680480,1716311444366,-166.666666,0.00021918,2]
[327680481,1716311444375,-159.73051569,0.0002243,2]
[327680482,1716311444393,-166.666666,0.00022431,2]
[327680483,1716311444411,-166.666666,0.00022944,2]
[327680484,1716311444429,-155.0418613,0.00023,2]
[327680485,1716311444450,-166.666666,0.00023456,2]
[327680486,1716311444472,-166.666666,0.00023969,2]
[327680487,1716311444490,-187.1961905,0.00024,2]
[327680488,1716311444508,-736.430844,0.00024384,2]
[327680489,1716311444523,-166.666666,0.00024482,2]
[327680490,1716311444537,-400.79054117,0.00025203,2]
[327680491,1716311444556,-167.45627556,0.00025204,2]
[327680492,1716311444577,-297.74234683,0.00030309,4]
[327680493,1716311444594,-736.430844,0.0003031,2]
[327680494,1716311444608,-151.368,0.00030694,2]
[327680495,1716311444626,-182.01276005,0.00030899,2]
[327680496,1716311444640,-1797.12012917,0.000315,2]
[327680497,1716311444656,-300.0,0.000321,2]
[327680498,1716311444668,-4299.07036356,0.0003221,2]
[327680499,1716311444684,-417.32360569,0.00032303,2]
[327680500,1716311444698,-2100.94791849,0.000326,5]
[327680501,1716311444711,-281.0,0.000326,5]
[327680502,1716311444725,-160.0,0.000326,7]
[327680503,1716311444740,-3000.0,0.0003267,6]
[327680504,1716311444753,-500.0,0.0003267,6]
[327680505,1716311444766,-451.27413235,0.00032671,2]
[327680506,1716311444781,-1567.06,0.00032763,3]
[327680507,1716311444795,-1305.89,0.00032763,3]
[327680508,1716311444809,-1088.24,0.00032763,3]
[327680509,1716311444824,-1690.36,0.00032763,3]
[327680510,1716311444840,-5265.17,0.0003277,7]
[327680511,1716311444854,-276.42418983,0.00032772,2]
[327680512,1716311444868,-182.33894138,0.00032772,2]
[327680513,1716311444882,-2000.0,0.00032773,2]
[327680514,1716311444896,-13269.98,0.00032773,6]
[327680515,1716311444911,-13269.98,0.00032773,6]
[327680516,1716311444925,-13269.98,0.00032773,6]
[327680517,1716311444940,-3847.3814008,0.000328,21]
[327680518,1716311444954,-563.0,0.000328,6]
[327680519,1716311444968,-563.0,0.000328,6]
[327680520,1716311444981,-2567.61507759,0.00032871,6]
[327680521,1716311445000,-10702.36492241,0.00032871,6]
[327680522,1716311445014,-5553.9884539,0.00032873,4]
[327680523,1716311445028,-315.99320616,0.00032873,4]
[327680524,1716311445042,-529.59428936,0.00032873,4]
[327680525,1716311445056,-309.58208351,0.00032873,4]
[327680526,1716311445070,-209.9078055,0.00032873,4]
[327680527,1716311445087,-2178.62655366,0.00032874,4]
[327680528,1716311445101,-206.74438638,0.00032874,4]
[327680556,1716311464577,156.49929555,9.999e-05,2]
[327680558,1716311472275,285.12297754,9.999e-05,2]
[327680559,1716311473318,1339.32951835,9.999e-05,2]
[327680560,1716311474147,261.17980481,9.999e-05,2]
[327680561,1716311481660,331.06432126,9.999e-05,2]
[327680562,1716311486112,720.18654452,9.999e-05,2]
[327680563,1716311501448,1868.96844737,9.999e-05,2]
[327680564,1716311504532,835.74260727,9.999e-05,2]
[327680565,1716311505077,194.5093511,9.999e-05,2]
[327680573,1716311558973,1717.62384614,9.999e-05,2]
[327680585,1716311594175,690.41096895,9.999e-05,2]
[327680587,1716311609684,1350.88655983,9.999e-05,2]
[327680588,1716311613774,410.5949292,9.999e-05,2]
[327680589,1716311616741,818.5944738,9.999e-05,2]
[327680610,1716311749299,273.37336231,9.9e-05,2]
[327680611,1716311758220,273.33874642,9.9e-05,2]
[327680612,1716311779722,6124.40854241,9.9e-05,2]
[327680613,1716311806048,155.02325349,9.9e-05,2]
[327680614,1716311810201,338.10912759,9.999e-05,2]
[327680617,1716311824052,156.35439323,9.999e-05,2]
[327680620,1716311844562,334.12418893,9.999e-05,2]
[327680621,1716311911957,281.12635245,9.999e-05,2]
[327680622,1716311978976,364.39759139,9.999e-05,2]
[327680623,1716312045408,729.03648132,9.999e-05,2]
[327680624,1716312272550,913.44233244,9.999e-05,2]
[327680625,1716312338774,487.85550363,9.999e-05,2]
[327680626,1716312349065,191.47878751,9.999e-05,2]
[327680627,1716312354153,207.49538567,9.999e-05,2]
[327680628,1716312355372,684.8282798,9.999e-05,2]
[327680629,1716312380882,238.83667024,9.999e-05,2]
[327680630,1716312384013,267.5305,9.999e-05,2]
[327680631,1716312384829,522.78148972,9.999e-05,2]
[327680632,1716312389413,155.0341075,9.999e-05,2]
[327680633,1716312395808,6825.50081253,9.999e-05,2]
[327680634,1716312397312,1496.84971124,9.999e-05,2]
[327680635,1716312399398,155.03720893,9.999e-05,2]
[327680636,1716312402685,395.41357359,9.999e-05,2]
[327680637,1716312430373,1696.11159756,9.999e-05,2]
[327680638,1716312446894,1043.53548688,9.999e-05,2]
[327680639,1716312449416,155.03720893,9.999e-05,2]
[327680640,1716312453163,4324.56971438,9.999e-05,2]
[327680641,1716312453543,204.84405945,9.999e-05,2]
[327680646,1716312519126,2633.21144188,0.000101,2]
[327680647,1716312529349,702.80759732,9.999e-05,2]
[327680648,1716312535823,155.0356582,9.999e-05,2]
[327680649,1716312546414,455.56419663,9.999e-05,2]
[327680650,1716312551981,1095.32887004,9.999e-05,2]
[327680663,1716312583977,302.38073973,9.999e-05,2]
[327680664,1716312584347,528.62113532,9.999e-05,2]
[327680751,1716312638445,-156.49929555,0.00013739,2]
[327680752,1716312638455,-155.0356582,0.0001374,2]
[327680753,1716312638465,-11058.41484839,0.00013741,2]
[327680754,1716312638475,-2635.15875922,0.00013742,2]
[327680755,1716312638484,-3000.0,0.00013743,2]
[327680756,1716312638494,-331.06432126,0.00014882,2]
[327680757,1716312638504,-921.28647666,0.00014883,2]
[327680758,1716312638514,-1717.62384614,0.00014884,2]
[327680759,1716312638524,-1875.29621628,0.00014886,2]
[327680760,1716312638534,-155.0356582,0.00014997,2]
[327680761,1716312638550,-10112.73841722,0.00014998,2]
[327680762,1716312638563,-2108.354901,0.00015,2]
[327680763,1716312638573,-1350.88655983,0.00016499,2]
[327680764,1716312638583,-550.85396294,0.000187,2]
[327680765,1716312638593,-274.38861044,0.00018701,2]
[327680766,1716312638605,-24900.0,0.00018703,2]
[327680767,1716312638615,-162.737522,0.00019178,2]
[327680768,1716312638629,-1500.0,0.0002,2]
[327680769,1716312638646,-182.01276005,0.000209,2]
[327680770,1716312638656,-14747.77032752,0.00020912,2]
[327680771,1716312638666,-4693.15522604,0.00021,2]
[327680772,1716312638676,-166.666666,0.00021918,2]
[327680773,1716312638686,-159.73051569,0.00022,2]
[327680774,1716312638699,-166.666666,0.00022431,2]
[327680775,1716312638709,-166.666666,0.00022944,2]
[327680776,1716312638719,-166.666666,0.00023456,2]
[327680777,1716312638728,-166.666666,0.00023969,2]
[327680778,1716312638738,-187.1961905,0.00024,2]
[327680779,1716312638753,-702.642912,0.00024384,2]
[327680780,1716312638763,-166.666666,0.00024482,2]
[327680781,1716312638772,-400.79054117,0.00025,2]
[327680782,1716312638782,-167.45627556,0.00025202,2]
[327680783,1716312638796,-238.83667024,0.00027668,2]
[327680784,1716312638807,-207.49538567,0.00027669,2]
[327680785,1716312638817,-684.8282798,0.0002767,2]
[327680786,1716312638827,-168.373609,0.00027671,2]
[327680787,1716312638837,-221.60537528,0.00028,2]
[327680788,1716312638847,-531.26583784,0.00030307,4]
[327680789,1716312638857,-155.0356582,0.00030308,4]
[327680790,1716312638867,-702.642912,0.0003031,2]
[327680791,1716312638877,-155.0356582,0.00030447,4]
[327680792,1716312638889,-511.40371168,0.00030452,2]
[327680793,1716312638899,-1471.65107298,0.00032336,4]
[327680794,1716312638910,-4224.07535635,0.00032337,2]
[327680795,1716312638920,-417.32360569,0.00032411,2]
[327680796,1716312638930,-511.47478617,0.00032445,3]
[327680797,1716312638939,-998.76,0.00032587,3]
[327680798,1716312638949,-832.3,0.00032587,3]
[327680799,1716312638959,-8201.96732347,0.00032597,7]
[327680800,1716312638971,-899.09477607,0.00032597,7]
[327680801,1716312638984,-63812.77370559,0.00032597,7]
[327680802,1716312638994,-2000.0,0.00032699,2]
[327680803,1716312639004,-511.40371168,0.00032726,2]
[327680804,1716312639014,-17433.77489905,0.00032799,7]
[327680805,1716312639026,-151.0,0.00032799,2]
[327680806,1716312639040,-251.956086,0.00032799,2]
[327680807,1716312639050,-151.0,0.00032799,2]
[327680808,1716312639060,-151.0,0.00032799,2]
[327680809,1716312639076,-151.0,0.00032799,2]
[327680810,1716312639087,-151.0,0.00032799,2]
[327680811,1716312639098,-11058.32,0.00032799,6]
[327680812,1716312639110,-11058.32,0.00032799,6]
[327680813,1716312639121,-11058.32,0.00032799,6]
[327680814,1716312639132,-281.0,0.000328,6]
[327680815,1716312639142,-563.0,0.000328,6]
[327680816,1716312639153,-563.0,0.000328,6]
[327680817,1716312639164,-160.0,0.000328,7]
[327680818,1716312639175,-734.91415658,0.00032874,4]
[327680819,1716312639185,-307.19391216,0.00032874,2]
[327680820,1716312639195,-155.04341216,0.00032874,4]
[327680821,1716312639206,-8200.69557193,0.00032874,7]
[327680822,1716312639217,-181.49361007,0.00032874,4]
[327680823,1716312639228,-184.76551092,0.00032874,4]
[327680824,1716312639238,-175.19247023,0.00032874,4]
[327680825,1716312639248,-513.39404903,0.00032874,4]
[327680826,1716312639260,-561.78139119,0.00032874,4]
[327680827,1716312639270,-763.93319824,0.00032874,4]
[327680828,1716312639280,-206.958691,0.00032874,2]
[327680829,1716312639293,-284.74947,0.00032874,2]
[327680830,1716312639303,-7513.01615417,0.00032896,6]
[327680901,1716312643532,-155.0356582,0.00013738,2]
[327680902,1716312643543,-2445.13019853,0.00032896,6]
[327680903,1716312643560,-1100.1736473,0.00032896,6]
[327680904,1716312643569,-151.0,0.00032899,2]
[327680905,1716312643582,-191.342098,0.00032899,2]
[327680906,1716312643591,-151.0,0.00032899,2]
[327680908,1716312643603,-151.0,0.00032899,2]
[327680909,1716312643612,-151.0,0.00032899,2]
[327680911,1716312643623,-151.0,0.00032899,2]
[327680912,1716312643635,-188.0,0.00032899,2]
[327680913,1716312643644,-193.54890809,0.00032899,6]
[327680914,1716312643656,-1756.92096665,0.00032899,6]
[327680915,1716312643670,-850.999985,0.00032899,6]
[327680916,1716312643682,-848.82898858,0.00032899,6]
[327680924,1716312646374,-7408.02115168,0.00032899,6]
[327680925,1716312646384,-3097.25091041,0.00033,2]
[327680926,1716312646394,-8610.47577185,0.00033,7]
[327680927,1716312646404,-18296.252166,0.00033222,5]
[327680928,1716312652340,1410.9941549,9.999e-05,2]
[327680929,1716312659532,9513.18539751,9.999e-05,2]
[327680930,1716312671369,1581.91498407,9.999e-05,2]
[327680931,1716312704220,230.87532501,9.999e-05,2]
[327680932,1716312710787,167.30851839,9.999e-05,2]
[327680933,1716312726606,155.0356582,9.999e-05,2]
[327680938,1716312909540,-155.0356582,0.00014998,2]
[327680939,1716312909565,-1893.86633087,0.00014999,2]
[327680940,1716312909588,-772.21556016,0.00014999,2]
[327680942,1716312983349,690.41096895,9.999e-05,2]
[327680944,1716312995580,1179.31962588,0.00015,2]
[327680982,1716313544880,347.6958016,0.00016803,2]
[327680983,1716313712518,522.78148972,9.999e-05,2]
[327681030,1716313832240,-974.56370931,0.00017643,2]
[327681031,1716313832253,-376.32285052,0.00017643,2]
[327681032,1716313832263,-156.49929555,0.00017644,2]
[327681033,1716313832272,-137.97872828,0.00017644,2]
[327681034,1716313832283,-69.51665739,0.00017644,2]
[327681035,1716313832293,-331.06432126,0.00017659,2]
[327681036,1716313832302,-155.02790502,0.0001766,2]
[327681037,1716313832311,-550.85396294,0.00017661,2]
[327681038,1716313832322,-455.56419663,0.00017662,2]
[327681039,1716313832331,-155.02790502,0.00017663,2]
[327681040,1716313832341,-942.90397425,0.00017664,2]
[327681041,1716313832351,-899.3537781,0.00017666,2]
[327681042,1716313832360,-24900.0,0.00017726,2]
[327681043,1716313832370,-10454.14770375,0.00017898,2]
[327681044,1716313832379,-383.55278377,0.000179,2]
[327681045,1716313832389,-1090.29384871,0.00018,3]
[327681046,1716313832398,-492.7178496,0.00018046,2]
[327681047,1716313832408,-201.147664,0.00018286,2]
[327681048,1716313832417,-7944.42271084,0.00019761,2]
[327681049,1716313832426,-383.55278376,0.00020341,2]
[327681050,1716313832435,-392.4,0.00020822,2]
[327681051,1716313832445,-2843.52403151,0.00021,2]
[327681136,1716313838475,-942.90397425,0.00017642,2]
[327681137,1716313838485,-1849.63119453,0.00021,2]
[327681138,1716313838495,-392.4,0.00021843,3]
[327681139,1716313838504,-166.666666,0.00021918,2]
[327681141,1716313838514,-159.73051569,0.00022,2]
[327681143,1716313838523,-166.666666,0.00022431,2]
[327681144,1716313838533,-383.55278376,0.00022782,2]
[327681145,1716313838542,-392.4,0.00022864,3]
[327681146,1716313838552,-166.666666,0.00022944,2]
[327681147,1716313838562,-166.666666,0.00023456,2]
[327681148,1716313838571,-392.4,0.00023885,3]
[327681149,1716313838581,-166.666666,0.00023969,2]
[327681150,1716313838590,-187.1961905,0.00024,2]
[327681151,1716313838600,-161.229657,0.00024384,2]
[327681152,1716313838609,-632.37862,0.00024384,2]
[327681153,1716313838618,-166.666666,0.00024482,2]
[327681154,1716313838628,-392.4,0.00024906,5]
[327681155,1716313838638,-167.45627556,0.00025,2]
[327681156,1716313838647,-400.79054117,0.00025204,2]
[327681157,1716313838657,-383.55278376,0.00025223,2]
[327681158,1716313838666,-392.4,0.00025927,5]
[327681159,1716313838676,-392.4,0.00026949,5]
[327681160,1716313838686,-729.22,0.00027397,2]
[327681161,1716313838696,-158.691562,0.00027502,2]
[327681162,1716313838705,-392.4,0.0002797,5]
[327681163,1716313838715,-221.60537528,0.00028,2]
[327681164,1716313838724,-627.2163872,0.00028799,2]
[327681165,1716313838733,-166.58,0.0002888,3]
[327681166,1716313838743,-499.75,0.0002888,3]
[327681167,1716313838753,-500.0,0.00028899,2]
[327681168,1716313838763,-500.0,0.00028899,2]
[327681169,1716313838773,-462.26417052,0.00028899,2]
[327681170,1716313838782,-500.0,0.00028899,2]
[327681171,1716313838792,-451.49284339,0.00028899,2]
[327681172,1716313838802,-312.95714125,0.00028899,2]
[327681173,1716313838816,-500.0,0.00028899,2]
[327681174,1716313838827,-500.0,0.00028899,2]
[327681175,1716313838837,-500.0,0.00028899,2]
[327681176,1716313838846,-578.4471437,0.00028899,2]
[327681177,1716313838856,-500.0,0.00028899,2]
[327681178,1716313838865,-500.0,0.00028899,2]
[327681179,1716313838875,-500.0,0.00028899,2]
[327681180,1716313838885,-500.0,0.00028899,2]
[327681181,1716313838894,-500.0,0.00028899,2]
[327681182,1716313838904,-500.0,0.00028899,2]
[327681183,1716313838913,-500.0,0.00028899,2]
[327681184,1716313838922,-164.55849526,0.00028899,2]
[327681185,1716313838932,-500.0,0.00028899,2]
[327681186,1716313838941,-500.0,0.00028899,2]
[327681187,1716313838950,-500.0,0.00028899,2]
[327681188,1716313838960,-500.0,0.00028899,2]
[327681189,1716313838975,-500.0,0.00028899,2]
[327681190,1716313838984,-500.0,0.00028899,2]
[327681191,1716313838994,-500.0,0.00028899,2]
[327681192,1716313839004,-192.32030384,0.00028899,2]
[327681193,1716313839014,-500.0,0.00028899,2]
[327681194,1716313839024,-500.0,0.00028899,2]
[327681195,1716313839034,-500.0,0.00028899,2]
[327681196,1716313839044,-500.0,0.00028899,2]
[327681197,1716313839056,-366.69210344,0.00028899,2]
[327681198,1716313839070,-133.30789656,0.00028899,2]
[327681199,1716313839081,-500.0,0.00028899,2]
[327681200,1716313839090,-500.0,0.00028899,2]
[327681201,1716313839100,-500.0,0.00028899,2]
[327681202,1716313839109,-500.0,0.00028899,2]
[327681203,1716313839119,-500.0,0.00028899,2]
[327681204,1716313839129,-355.0188936,0.00028899,2]
[327681205,1716313839141,-144.9811064,0.00028899,2]
[327681206,1716313839151,-37990.05111305,0.000289,7]
[327681311,1716313844565,-383.55278376,0.00027664,2]
[327681314,1716313844575,-1930.01,0.0002889,3]
[327681316,1716313844588,-8466.86678951,0.000289,7]
[327681319,1716313844598,-10971.11547988,0.000289,2]
[327681323,1716313844610,-22627.62629247,0.000289,2]
[327681325,1716313844619,-392.4,0.00028991,7]
[327681327,1716313844629,-627.2163872,0.00029884,2]
[327681329,1716313844638,-154.73694719,0.0003,2]
[327681330,1716313844648,-392.4,0.00030012,7]
[327681332,1716313844657,-309.4430026,0.0003008,4]
[327681334,1716313844666,-333.16,0.0003025,3]
[327681336,1716313844675,-632.37862,0.0003031,2]
[327681338,1716313844685,-627.2163872,0.0003097,2]
[327681340,1716313844694,-392.4,0.00031033,7]
[327681342,1716313844703,-921.05245398,0.00031751,4]
[327681344,1716313844713,-627.2163872,0.00032055,2]
[327681346,1716313844722,-496.0,0.00032355,2]
[327681348,1716313844734,-211.044,0.00032355,2]
[327681350,1716313844743,-151.0,0.00032596,2]
[327681352,1716313844753,-151.0,0.00032596,2]
[327681354,1716313844762,-151.0,0.00032596,2]
[327681356,1716313844772,-4224.07535635,0.0003264,2]
[327681358,1716313844782,-417.32360569,0.0003266,2]
[327681360,1716313844792,-409.17982893,0.00032669,3]
[327681362,1716313844801,-151.0,0.00032798,2]
[327681364,1716313844811,-151.0,0.00032798,2]
[327681366,1716313844821,-15023.59128235,0.00032799,4]
[327681368,1716313844834,-2529.70760707,0.00032799,2]
[327681370,1716313844843,-151.0,0.00032898,2]
[327681372,1716313844853,-151.0,0.00032898,2]
[327681374,1716313844863,-151.0,0.00032961,2]
[327681376,1716313844873,-150.48109475,0.00033,2]
[327681378,1716313844883,-627.2163872,0.0003314,2]
[327681380,1716313844893,-281.0,0.000332,6]
[327681382,1716313844903,-563.0,0.000332,6]
[327681384,1716313844914,-266.0,0.000332,6]
[327681386,1716313844924,-158.62,0.000332,8]
[327681388,1716313844933,-9200.43,0.00033221,6]
[327681390,1716313844943,-9200.43,0.00033221,6]
[327681392,1716313844953,-9200.43,0.00033221,6]
[327681394,1716313844963,-9200.43,0.00033221,6]
[327681396,1716313844976,-50731.72191591,0.00033222,5]
[327681398,1716313844986,-2562.59808439,0.00033236,6]
[327681400,1716313845000,-6637.83191561,0.00033236,6]
[327681402,1716313845012,-151.0,0.00033238,2]
[327681404,1716313845021,-210.29588748,0.00033238,2]
[327681406,1716313845032,-207.784917,0.00033238,2]
[327681408,1716313845043,-1386.86233348,0.00033239,7]
[327681548,1716313846654,-7336.79132724,0.00033239,7]
[327682938,1716313937399,395.41357359,9.999e-05,2]
[327682996,1716315032861,-331.06432126,0.00019169,2]
[327682999,1716315032871,-60.86828295,0.0001917,2]
[327683002,1716315032882,-1290.01827688,0.0001917,2]
[327683005,1716315032891,-158.691562,0.00019178,2]
[327683008,1716315032902,-5550.09831633,0.00020367,2]
[327683163,1716315039395,-5508.31653206,0.00020367,2]
[327683164,1716315039405,-10454.14770375,0.00020367,2]
[327683165,1716315039415,-24900.0,0.00020368,2]
[327683166,1716315039427,-166.666666,0.00021918,2]
[327683167,1716315039436,-159.73051569,0.00022,2]
[327683168,1716315039445,-166.666666,0.00022431,2]
[327683169,1716315039455,-166.666666,0.00022944,2]
[327683170,1716315039464,-166.666666,0.00023456,2]
[327683171,1716315039476,-166.666666,0.00023969,2]
[327683172,1716315039486,-150.0,0.00024282,3]
[327683173,1716315039495,-617.509655,0.00024384,2]
[327683174,1716315039505,-166.666666,0.00024482,2]
[327683175,1716315039514,-400.79054117,0.00025,2]
[327683176,1716315039523,-167.45627556,0.00025,2]
[327683177,1716315039533,-162.737522,0.00025,2]
[327683178,1716315039542,-150.0,0.00025312,5]
[327683179,1716315039552,-221.60537528,0.00028,2]
[327683180,1716315039562,-617.509655,0.0003031,2]
[327683181,1716315039572,-500.0,0.000321,2]
[327683182,1716315039582,-168.16,0.000322,2]
[327683183,1716315039592,-500.0,0.000323,2]
[327683184,1716315039602,-232.262,0.00032379,2]
[327683185,1716315039611,-298.632,0.00032379,2]
[327683186,1716315039621,-496.0,0.00032379,2]
[327683187,1716315039630,-1500.20458974,0.00032698,2]
[327683188,1716315039643,-499.79541026,0.00032698,2]
[327683189,1716315039652,-327.34386315,0.00032905,3]
[327683190,1716315039662,-294.14072659,0.00032929,2]
[327683231,1716315041047,-164.37976452,0.00021818,2]
[327683233,1716315041056,-705.85927341,0.00032929,2]
[327683235,1716315041067,-1000.0,0.00032944,2]
[327683237,1716315041076,-492.86802467,0.00032967,2]
[327683239,1716315041085,-1000.0,0.00033089,2]
[327683241,1716315041095,-4348.70717395,0.00033133,2]
[327683243,1716315041104,-417.32360569,0.00033134,2]
[327683245,1716315041114,-151.0,0.000332,8]
[327683247,1716315041123,-281.0,0.000332,6]
[327683249,1716315041132,-300.61038107,0.00033202,2]
[327683251,1716315041142,-1608.34,0.0003323,3]
[327683253,1716315041151,-500.0,0.00033239,7]
[327683255,1716315041160,-500.0,0.00033239,7]
[327683257,1716315041170,-299.36754857,0.00033239,7]